bitfinex-derivatives/quotes_ETHF0:USTF0_20250904
["timestamp","ask_amount","ask_price","bid_price","bid_amount"]
[1756976183606,3.8978,4373.4,4373.3,2.65333056]
[1756976184097,3.8978,4373.4,4373.3,2.95773056]
[1756976184404,3.6976,4373.4,4373.3,2.95773056]
[1756976185507,0.4898,4373.4,4373.3,2.95773056]
[1756976185909,0.2937,4373.4,4373.3,2.65333056]
[1756976186504,0.2937,4373.4,4373.3,2.95773056]
[1756976189300,0.2937,4373.8,4373.4,0.3044]
[1756976189505,0.69,4373.8,4373.7,2.72773056]
[1756976189714,0.69,4373.8,4373.7,2.95773056]
[1756976191810,0.69,4373.8,4373.7,2.65333056]
[1756976192401,0.69,4373.8,4373.7,2.23303056]
[1756976192615,0.69,4373.8,4373.7,2.00303056]
[1756976192809,0.69,4373.8,4373.7,2.23303056]
[1756976193009,0.69,4373.8,4373.7,0.23]
[1756976194813,1.24887166,4373.8,4373.7,0.23]
[1756976197417,1.24887166,4373.8,4373.5,0.23]
[1756976197611,0.69,4373.6,4373.5,0.23]
[1756976197809,0.69,4373.6,4373.5,0.4407]
[1756976199216,1.24969484,4373.6,4373.5,0.4407]
[1756976201113,1.24969484,4373.6,4373.5,0.9547]
[1756976205120,1.24969484,4373.6,4373.5,0.6503]
[1756976206517,1.24969484,4373.6,4373.5,0.23]
[1756976206919,0.8059,4373.5,4373.4,2.00303056]
[1756976207119,0.6866,4373.3,4373.2,2.00303056]
[1756976207324,0.1967,4372.5,4372.4,3.9057]
[1756976207621,0.4841,4372.5,4372.4,6.13873056]
[1756976210124,0.2874,4372.5,4372.4,6.13873056]
[1756976211125,0.2874,4372.9,4372.4,5.84333056]
[1756976211324,0.84744389,4372.8,4372.7,0.6979]
[1756976211517,0.84744389,4372.8,4372.7,0.9279]
[1756976212618,0.84744389,4372.8,4372.7,2.93093056]
[1756976213328,0.2874,4372.8,4372.7,2.93093056]
[1756976213726,0.84743524,4372.8,4372.7,2.93093056]
[1756976214124,3.2078,4373.4,4372.7,2.93093056]
[1756976214429,0.95923196,4373.3,4373.2,0.6979]
[1756976214630,0.95923196,4373.3,4373.2,0.9279]
[1756976214930,1.24663196,4373.3,4373.2,0.9279]
[1756976215529,1.24663196,4373.3,4373.2,2.93093056]
[1756976215730,1.24663196,4373.3,4373.2,2.40553056]
[1756976218225,1.24663196,4373.3,4373.2,2.63553056]
[1756976218735,1.24663196,4373.3,4373.2,2.93093056]
[1756976220245,1.24663196,4373.3,4373.2,0.4346]
[1756976220544,1.24663196,4373.3,4373.2,0.23]
[1756976221248,1.24663196,4373.3,4373.2,0.4346]
[1756976223948,1.24663196,4373.3,4373.2,0.23]
[1756976224351,1.24663196,4373.3,4373.2,0.4346]
[1756976233057,1.24663196,4373.3,4373.2,0.9269]
[1756976234553,1.24663196,4373.3,4373.2,0.6342]
[1756976237961,1.24663196,4373.3,4373.2,0.9269]
[1756976238364,1.24663196,4373.3,4373.2,0.6342]
[1756976240460,0.56003196,4373.3,4373.2,0.9269]
[1756976240659,0.3149,4373.9,4373.3,0.2927]
[1756976240861,0.7184,4373.9,4373.8,2.21343056]
[1756976241050,1.27951364,4373.9,4373.8,2.70573056]
[1756976245462,0.5128,4373.9,4373.8,2.34195466]
[1756976248860,1.07239763,4373.9,4373.8,2.34195466]
[1756976249066,0.55959763,4373.9,4373.8,2.34195466]
[1756976249658,0.87449763,4373.9,4373.8,2.34195466]
[1756976251065,0.55959763,4373.9,4373.8,2.34195466]
[1756976251565,0.87449763,4373.9,4373.8,2.34195466]
[1756976252067,1.07239763,4373.9,4373.8,2.34195466]
[1756976256668,0.96309763,4373.9,4373.8,1.86925466]
[1756976257271,1.27799763,4373.9,4373.8,1.86925466]
[1756976257673,1.27799763,4373.9,4373.8,0.23]
[1756976257865,0.4035,4373.6,4373.5,1.63925466]
[1756976258071,1.27799763,4373.6,4373.5,1.63925466]
[1756976258967,0.7184,4373.6,4373.5,1.63925466]
[1756976259168,0.5262,4373.5,4373.4,0.23]
[1756976259365,0.8411,4373.5,4373.4,1.86925466]
[1756976259569,1.39953953,4373.5,4373.4,1.86925466]
[1756976261282,1.39953953,4373.5,4373.4,1.63925466]
[1756976266482,1.39953953,4373.5,4373.4,1.83885466]
[1756976268882,0.8411,4373.5,4373.4,1.83885466]
[1756976269085,1.40005424,4373.5,4373.4,1.83885466]
[1756976269785,1.40005424,4373.5,4373.4,2.12915466]
[1756976270179,1.40005424,4373.5,4373.4,2.32745466]
[1756976278884,1.40005424,4373.5,4373.4,2.03715466]
[1756976279891,1.40005424,4373.5,4373.4,2.32745466]
[1756976280686,1.40005424,4373.5,4373.4,2.55745466]
[1756976284796,1.40093072,4373.5,4373.4,2.55745466]
[1756976286600,1.40093072,4373.5,4373.4,1.86925466]
[1756976288594,1.40093072,4373.5,4372.2,3.6977]
[1756976288595,0.1194,4373.0,4372.2,3.6977]
[1756976288793,0.3891,4372.3,4372.2,0.3979]
[1756976288992,0.3891,4372.3,4372.2,2.03715466]
[1756976289189,0.6984,4372.3,4372.2,1.83885466]
[1756976289392,1.25823072,4372.3,4372.2,1.83885466]
[1756976293306,0.6984,4372.3,4372.2,1.83885466]
[1756976298703,0.6984,4372.3,4372.2,2.35035466]
[1756976298898,1.26532709,4372.3,4372.2,2.35035466]
[1756976299099,0.5076,4372.3,4372.2,2.35035466]
[1756976300802,0.7074,4372.3,4372.2,2.04375466]
[1756976301004,1.27448365,4372.3,4372.2,2.04375466]
[1756976302703,1.27448365,4372.3,4372.2,1.83885466]
[1756976304012,1.27448365,4372.3,4372.2,0.1996]
[1756976304312,1.27448365,4372.3,4372.2,1.83885466]
[1756976305308,1.27448365,4372.3,4371.7,3.2078]
[1756976305511,0.7026,4371.6,4371.5,0.707]
[1756976305717,1.26968365,4371.6,4371.5,0.707]
[1756976305909,1.26968365,4371.6,4371.5,0.4004]
[1756976306810,1.26968365,4371.6,4371.5,0.1955]
[1756976307813,1.26968365,4371.6,4371.5,0.707]
[1756976308916,0.7026,4371.6,4371.5,0.707]
[1756976309616,0.1205,4371.5,4370.7,0.3066]
[1756976309912,0.7026,4370.8,4370.7,0.707]
[1756976312318,0.7026,4370.8,4370.7,0.937]
[1756976313311,0.7026,4370.8,4370.7,0.6304]
[1756976313618,0.7026,4370.8,4370.6,0.23]
[1756976313919,0.7026,4370.8,4370.7,0.1955]
[1756976321420,0.7026,4370.8,4370.4,2.3120446]
[1756976321614,0.5219,4370.5,4370.4,0.4004]
[1756976321814,0.5219,4370.5,4370.4,0.937]
[1756976322222,0.8098,4370.5,4370.4,0.937]
[1756976322615,0.6893,4370.5,4370.4,0.937]
[1756976322923,3.2078,4370.9,4370.5,0.3002]
[1756976323115,0.2879,4370.8,4370.7,2.3933446]
[1756976323314,0.2879,4370.8,4370.7,2.6935446]
[1756976323815,0.4782,4370.8,4370.7,2.6935446]
[1756976325922,0.4782,4370.8,4370.7,0.9181]
[1756976326423,0.6698,4370.8,4370.7,0.9181]
[1756976329127,0.2879,4371.3,4371.2,0.1947]
[1756976329319,0.6698,4371.3,4371.2,0.3879]
[1756976329722,0.6698,4371.3,4371.2,0.6881]
[1756976330932,0.2879,4371.3,4371.2,0.6881]
[1756976331230,0.2879,4371.3,4371.2,2.6935446]
[1756976333730,0.4782,4371.3,4371.2,2.6935446]
[1756976334426,0.2879,4371.3,4371.2,2.6935446]
[1756976336637,0.4782,4371.3,4371.2,2.6935446]
[1756976338037,0.4782,4371.3,4371.2,0.6881]
[1756976339140,1.04859029,4371.3,4371.2,0.9181]
[1756976340033,1.04859029,4371.3,4371.2,2.9235446]
[1756976340237,1.24019029,4371.3,4371.2,2.9235446]
[1756976341538,1.24019029,4371.3,4371.2,0.9181]
[1756976341741,1.24019029,4371.3,4371.2,0.6179]
[1756976341941,1.24019029,4371.3,4371.2,0.23]
[1756976342846,0.95229029,4371.3,4370.8,2.0054446]
[1756976343035,1.24019029,4371.2,4371.1,0.1947]
[1756976343236,1.24019029,4371.2,4371.1,0.4247]
[1756976343546,1.24019029,4371.2,4371.1,2.2001446]
[1756976343746,1.24019029,4371.2,4371.1,2.4301446]
[1756976345144,1.24019029,4371.2,4371.1,2.9235446]
[1756976349052,0.6698,4371.2,4371.1,2.9235446]
[1756976350252,1.2403272,4371.2,4371.1,2.9235446]
[1756976350945,1.2403272,4371.2,4371.1,2.6935446]
[1756976351251,1.2403272,4371.2,4371.1,2.9235446]
[1756976353252,1.2403272,4371.2,4371.1,0.9181]
[1756976353553,1.2403272,4371.2,4371.1,2.9235446]
[1756976360260,1.0487272,4371.2,4371.1,2.9235446]
[1756976363864,0.5705272,4371.2,4371.1,2.9235446]
[1756976364567,0.8589272,4371.2,4371.1,2.9235446]
[1756976365162,0.2884,4372.1,4371.1,7.1523146]
[1756976365366,0.2884,4372.1,4372.0,2.7051446]
[1756976365571,0.86028655,4372.1,4372.0,2.57062249]
[1756976365773,1.05928655,4372.1,4372.0,2.57062249]
[1756976366368,1.05928655,4372.1,4372.0,6.88875249]
[1756976366369,0.57188655,4372.1,4372.0,6.88875249]
[1756976366573,0.2884,4372.5,4372.4,0.6997]
[1756976366574,0.4874,4372.5,4372.4,0.6997]
[1756976366770,0.4874,4372.5,4372.4,2.57062249]
[1756976366962,1.05903818,4372.5,4372.4,2.57062249]
[1756976369370,1.05903818,4372.5,4372.4,2.34062249]
[1756976369567,1.05903818,4372.5,4372.4,2.57062249]
[1756976370472,1.05903818,4372.5,4372.4,2.34062249]
[1756976370663,1.18013818,4372.5,4372.4,2.57062249]
[1756976372275,0.6085,4372.5,4372.4,2.57062249]
[1756976375270,0.2884,4372.5,4372.4,2.57062249]
[1756976377277,0.8001,4372.5,4372.4,0.3923]
[1756976377478,0.8001,4372.5,4372.4,0.1906]
[1756976377672,0.2884,4372.4,4372.2,1.64092249]
[1756976377870,0.679,4372.3,4372.2,1.83152249]
[1756976378178,0.679,4372.3,4372.2,2.06152249]
[1756976378372,0.679,4372.3,4372.2,1.83152249]
[1756976378572,0.679,4372.3,4372.2,0.1906]
[1756976378772,0.679,4372.3,4372.2,0.4206]
[1756976379474,0.679,4372.3,4372.2,1.87092249]
[1756976380673,0.679,4372.3,4372.2,2.06152249]
[1756976383078,0.679,4372.3,4372.2,2.55612249]
[1756976383479,0.4874,4372.3,4372.2,2.55612249]
[1756976383780,0.4874,4372.3,4372.2,2.25412249]
[1756976383781,0.6822,4372.3,4372.2,2.25412249]
[1756976385368,1.25228301,4372.3,4372.2,2.25412249]
[1756976386782,0.6822,4372.3,4372.2,2.25412249]
[1756976387386,1.2523141,4372.3,4372.2,2.25412249]
[1756976387584,1.2523141,4372.3,4372.2,2.55612249]
[1756976399787,0.5701141,4372.3,4372.2,2.55612249]
[1756976400186,0.5701141,4372.3,4372.2,4.42576497]
[1756976400385,0.5701141,4372.3,4372.2,8.42576497]
[1756976400789,0.3088,4372.9,4372.8,0.3916]
[1756976400985,0.3088,4372.9,4372.8,2.56452249]
[1756976401687,0.8808397,4372.9,4372.8,2.56452249]
[1756976404683,0.5720397,4372.9,4372.8,2.56452249]
[1756976412312,0.2932,4373.2,4373.1,0.7046]
[1756976412611,1.05463718,4373.2,4373.1,2.57552249]
[1756976412903,1.25043718,4373.2,4373.1,2.34552249]
[1756976413107,1.25043718,4373.2,4373.1,2.27512249]
[1756976413307,0.86383718,4373.2,4373.1,2.27512249]
[1756976413510,0.1211,4373.5,4373.1,5.48292249]
[1756976413705,0.86375052,4373.4,4373.1,4.1424]
[1756976414009,0.2932,4373.4,4373.3,2.34552249]
[1756976414212,0.86375076,4373.4,4373.3,2.27512249]
[1756976414405,0.86375076,4373.4,4373.3,2.57552249]
[1756976414600,0.57055076,4373.4,4373.3,2.57552249]
[1756976414798,0.1211,4374.0,4373.4,0.3004]
[1756976414799,0.2932,4374.0,4373.4,0.3004]
[1756976415004,0.2932,4374.0,4373.9,2.34552249]
[1756976415202,3.2078,4374.6,4373.9,2.27512249]
[1756976415410,3.2078,4374.6,4374.0,0.3004]
[1756976415610,3.2078,4374.6,4374.4,0.2104]
[1756976415611,0.5086,4374.5,4374.4,0.2104]
[1756976415806,0.5086,4374.5,4374.4,0.4404]
[1756976416117,0.8018,4374.5,4374.4,2.27512249]
[1756976416905,0.8018,4374.5,4374.4,2.57552249]
[1756976417914,0.8018,4374.5,4374.4,2.27512249]
[1756976418515,0.8018,4374.5,4374.4,2.57552249]
[1756976418816,0.2932,4374.5,4374.4,2.57552249]
[1756976419107,0.2932,4374.9,4374.5,0.3641]
[1756976419309,0.484,4374.9,4374.8,2.34552249]
[1756976419514,0.484,4374.9,4374.8,2.57552249]
[1756976421413,0.2932,4374.9,4374.8,2.57552249]
[1756976423016,0.23,4375.6,4375.3,0.4042]
[1756976423017,0.1908,4375.4,4375.3,0.4042]
[1756976423216,0.6798,4375.4,4375.3,2.27512249]
[1756976423421,0.6798,4375.4,4375.3,1.64092249]
[1756976423718,0.6798,4375.4,4374.9,0.2104]
[1756976423719,0.8055,4375.0,4374.9,0.2104]
[1756976423918,0.8055,4375.0,4374.9,0.4404]
[1756976424115,0.8055,4375.0,4374.9,0.7408]
[1756976424317,0.8055,4375.0,4374.9,0.9346]
[1756976426520,0.2932,4375.0,4374.9,0.9346]
[1756976426720,0.2932,4375.4,4375.3,0.4042]
[1756976426913,0.2932,4375.4,4375.3,2.57552249]
[1756976427114,0.2932,4375.5,4375.4,0.3004]
[1756976427424,0.2932,4375.5,4375.4,2.70569317]
[1756976429229,0.484,4375.5,4375.4,2.70569317]
[1756976433523,3.322,4376.1,4375.5,0.3004]
[1756976433722,0.1958,4375.7,4375.2,0.2104]
[1756976433925,0.1257,4375.5,4375.4,0.2104]
[1756976434119,0.5123,4375.5,4375.4,0.4404]
[1756976434319,0.8055,4375.5,4375.4,0.4404]
[1756976435728,0.8055,4375.5,4375.4,0.9346]
[1756976437332,0.484,4375.5,4375.4,0.9346]
[1756976437517,0.484,4375.9,4375.8,0.4042]
[1756976437723,1.04950207,4375.9,4375.8,2.93569317]
[1756976439728,0.85870207,4375.9,4375.8,2.93569317]
[1756976440027,0.56550207,4375.9,4375.8,2.93569317]
[1756976443732,0.56550207,4375.9,4375.8,4.9346]
[1756976447737,0.56550207,4375.9,4375.8,0.9346]
[1756976449030,0.1197,4377.0,4376.1,0.2432]
[1756976449227,0.5051,4377.0,4376.9,2.40599317]
[1756976449426,1.07201659,4377.0,4376.9,2.63599317]
[1756976449627,1.38021659,4377.0,4376.9,2.63599317]
[1756976449829,1.38021659,4377.0,4376.9,2.40599317]
[1756976450133,1.38021659,4377.0,4376.9,2.63599317]
[1756976451331,1.38021659,4377.0,4376.9,2.40599317]
[1756976451627,1.38021659,4377.0,4376.9,2.00109317]
[1756976452230,5.38021659,4377.0,4376.9,2.23109317]
[1756976454028,5.38021659,4377.0,4376.9,2.00109317]
[1756976454229,5.38021659,4377.0,4376.9,2.23109317]
[1756976455229,5.38021659,4377.0,4376.9,0.23]
[1756976455429,5.38021659,4377.0,4376.9,2.23109317]
[1756976459138,5.38021659,4377.0,4376.9,0.23]
[1756976459343,5.38021659,4377.0,4376.9,2.23109317]
[1756976459344,1.38021659,4377.0,4376.9,2.23109317]
[1756976461040,4.58801659,4377.0,4376.9,2.23109317]
[1756976461341,4.58801659,4377.0,4376.9,2.44079317]
[1756976461532,1.38021659,4377.0,4376.9,2.44079317]
[1756976461735,1.38021659,4377.0,4376.9,2.63599317]
[1756976465631,1.38021659,4377.0,4376.9,2.40599317]
[1756976465836,1.38021659,4377.0,4376.9,2.63599317]
[1756976466637,1.38021659,4377.0,4376.9,2.87919317]
[1756976467245,1.06571659,4377.0,4376.9,2.87919317]
[1756976467640,1.06571659,4377.0,4376.9,2.40599317]
[1756976467641,1.38021659,4377.0,4376.9,2.40599317]
[1756976467841,4.58801659,4377.0,4376.9,0.23]
[1756976468039,4.58801659,4377.0,4376.5,3.2078]
[1756976468243,0.6936,4376.6,4376.5,3.6127]
[1756976468439,1.26051659,4376.6,4376.5,5.84379317]
[1756976468840,1.26051659,4376.6,4376.5,6.08699317]
[1756976471844,0.87511659,4376.6,4376.5,6.08699317]
[1756976472052,0.56691659,4376.6,4376.5,6.08699317]
[1756976472344,0.56691659,4376.6,4376.5,6.08739317]
[1756976472651,0.87456819,4376.8,4376.7,0.4024]
[1756976472943,0.56856819,4376.8,4376.7,2.87709317]
[1756976475752,0.87456819,4376.8,4376.7,2.87709317]
[1756976475951,1.08526819,4376.8,4376.7,2.87709317]
[1756976476948,1.28856819,4376.8,4376.7,2.63349317]
[1756976479866,1.28856819,4376.8,4376.7,2.87699317]
[1756976480054,1.08526819,4376.8,4376.7,2.87699317]
[1756976481171,1.08526819,4376.8,4376.7,2.64699317]
[1756976481469,0.87456819,4376.8,4376.7,2.87699317]
[1756976482471,1.08526819,4376.8,4376.7,2.87699317]
[1756976485675,0.87456819,4376.8,4376.7,2.87699317]
[1756976487572,0.87456819,4376.8,4376.7,2.64699317]
[1756976487774,0.87456819,4376.8,4376.7,2.87699317]
[1756976488775,0.56856819,4376.8,4376.7,2.87699317]
[1756976489573,0.56856819,4376.8,4376.7,2.5127582]
[1756976490381,0.4202,4377.1,4376.7,2.5127582]
[1756976490679,0.1142,4377.1,4377.0,5.4905582]
[1756976490978,0.306,4377.4,4377.3,0.6459]
[1756976491168,0.306,4377.4,4377.3,2.5127582]
[1756976492577,0.306,4377.4,4377.3,4.1496164]
[1756976492977,0.306,4377.6,4377.3,3.9061164]
[1756976493180,0.1142,4377.7,4377.6,0.4024]
[1756976493381,3.3335,4378.0,4377.6,0.4024]
[1756976493382,3.2078,4378.0,4377.6,0.8759]
[1756976493682,3.2078,4378.0,4377.9,2.3507582]
[1756976493876,3.2078,4378.0,4377.9,2.5807582]
[1756976494078,3.4185,4378.0,4377.9,2.5807582]
[1756976494476,4.42938893,4378.6,4377.9,2.2692582]
[1756976494682,0.2107,4378.2,4378.1,0.7139]
[1756976494981,0.2107,4378.2,4378.1,0.9439]
[1756976496079,0.5167,4378.2,4378.1,0.9439]
[1756976496280,0.2107,4378.2,4378.1,0.9439]
[1756976498286,0.306,4378.5,4378.1,0.9439]
[1756976498585,0.72,4378.5,4378.4,2.3507582]
[1756976498789,0.72,4378.5,4378.4,2.5807582]
[1756976499283,3.9278,4378.6,4378.5,0.7139]
[1756976502585,4.49091772,4378.6,4378.5,0.7139]
[1756976503491,4.49091772,4378.6,4378.5,0.8285]
[1756976504280,4.49091772,4378.6,4378.5,2.4653582]
[1756976504692,4.18491772,4378.6,4378.5,2.4653582]
[1756976504892,4.49701772,4378.6,4378.5,2.4653582]
[1756976505098,4.49701772,4378.6,4378.5,1.8668582]
[1756976505392,4.49701772,4378.6,4378.5,2.1827582]
[1756976506094,4.49701772,4378.6,4378.5,1.8668582]
[1756976507094,0.3968,4378.3,4378.2,0.3159]
[1756976507290,0.7089,4378.3,4378.2,1.8668582]
[1756976507496,1.27201772,4378.3,4378.2,1.8668582]
[1756976507994,1.27201772,4378.3,4378.2,2.1827582]
[1756976508396,1.27204159,4378.3,4378.2,2.1827582]
[1756976508690,1.27204159,4378.3,4378.2,1.9527582]
[1756976508889,1.27204159,4378.3,4378.2,2.1827582]
[1756976509894,1.27204159,4378.3,4378.2,1.9527582]
[1756976510101,0.7089,4377.7,4377.6,0.5069]
[1756976510286,1.27204159,4377.7,4377.6,2.3737582]
[1756976511089,1.27204159,4377.7,4377.6,2.5834582]
[1756976513000,0.75674159,4377.7,4377.6,4.2203164]
[1756976513190,0.75674159,4377.7,4377.6,2.5834582]
[1756976523306,3.2078,4378.1,4378.0,0.8312]
[1756976523507,3.2078,4378.1,4378.0,1.0612]
[1756976524703,0.3121,4378.5,4378.0,1.0612]
[1756976524911,0.5057,4378.5,4378.4,2.3534582]
[1756976525209,0.5057,4378.5,4378.4,2.5834582]
[1756976525509,0.7089,4378.5,4378.4,2.5834582]
[1756976534210,0.1936,4378.5,4378.4,2.5834582]
[1756976535112,1.22158893,4378.6,4378.4,2.2675582]
[1756976535312,1.22158893,4378.7,4378.6,0.2854]
[1756976535511,1.78220604,4378.7,4378.6,0.9076]
[1756976536016,1.22158893,4378.7,4378.6,0.9076]
[1756976537412,1.78220604,4378.8,4378.6,0.9076]
[1756976537615,0.17,4378.9,4378.7,0.6776]
[1756976537816,0.17,4378.9,4378.8,2.5444582]
[1756976538014,0.73067887,4378.9,4378.8,2.5444582]
[1756976543225,0.17,4378.9,4378.8,2.5444582]
[1756976543916,0.4887,4379.8,4379.7,0.3922]
[1756976544121,0.75253521,4379.8,4379.7,2.5444582]
[1756976544922,0.56013521,4379.8,4379.7,2.5444582]
[1756976545515,3.5041,4380.4,4379.8,0.2854]
[1756976545710,3.9038,4380.4,4380.3,2.3144582]
[1756976545910,4.4635682,4380.4,4380.3,2.5444582]
[1756976550222,4.2562682,4380.4,4380.3,2.5444582]
[1756976550426,4.4635682,4380.4,4380.3,2.5444582]
[1756976550629,4.4635682,4380.4,4380.3,2.3529582]
[1756976550929,4.2562682,4380.4,4380.3,2.5444582]
[1756976551423,4.2562682,4380.4,4380.3,2.90428171]
[1756976551623,4.4635682,4380.4,4380.3,2.71278171]
[1756976553332,4.4635682,4380.4,4380.3,2.90428171]
[1756976553525,3.9038,4380.4,4380.3,2.90428171]
[1756976554319,3.6075,4380.4,4380.3,2.90428171]
[1756976555830,3.2078,4380.4,4380.3,2.90428171]
[1756976556023,0.696,4380.8,4380.7,0.6776]
[1756976556332,0.696,4380.8,4380.7,2.90428171]
[1756976556333,1.25416333,4380.8,4380.7,2.90428171]
[1756976557133,1.25416333,4380.8,4380.7,0.9076]
[1756976557336,0.75056333,4380.8,4380.7,2.90428171]
[1756976558142,1.04686333,4380.8,4380.7,2.90428171]
[1756976558845,1.25416333,4380.8,4380.7,2.90428171]
[1756976560042,1.25416333,4380.8,4380.7,2.67428171]
[1756976560244,1.25416333,4380.8,4380.7,2.90428171]
[1756976565139,0.95786333,4380.8,4380.7,2.90428171]
[1756976565334,0.75056333,4380.8,4380.7,2.90428171]
[1756976566751,3.2078,4380.9,4380.7,2.90428171]
[1756976567047,3.2078,4380.9,4380.8,0.6909]
[1756976567249,3.76648509,4380.9,4380.8,0.6909]
[1756976568555,3.96618509,4380.9,4380.8,0.6909]
[1756976569056,4.26318509,4380.9,4380.8,0.6909]
[1756976569647,4.26318509,4380.9,4380.8,0.9209]
[1756976569843,4.26318509,4380.9,4380.8,0.6909]
[1756976570060,4.26318509,4380.9,4380.8,0.9209]
[1756976571455,4.47368509,4380.9,4380.8,0.9209]
[1756976572852,4.47368509,4380.9,4380.7,1.99668171]
[1756976572853,0.297,4380.8,4380.4,0.2889]
[1756976573055,0.8305,4380.5,4380.4,1.99668171]
[1756976573255,1.38918509,4380.5,4380.4,2.22668171]
[1756976573755,1.38918509,4380.5,4380.4,2.51558171]
[1756976574357,1.26588509,4380.5,4380.4,2.91758171]
[1756976585567,1.26588509,4380.5,4380.4,2.71178171]
[1756976586067,1.26588509,4380.5,4380.4,2.68758171]
[1756976586268,1.26588509,4380.5,4380.4,2.91658171]
[1756976586765,1.26588509,4380.5,4380.4,2.68758171]
[1756976586971,1.26588509,4380.5,4380.4,2.91658171]
[1756976588772,1.38918509,4380.5,4380.1,3.2078]
[1756976589063,0.4102,4379.7,4379.6,0.7151]
[1756976589269,1.26588509,4379.7,4379.6,2.91758171]
[1756976591766,0.75838509,4379.7,4379.6,2.91758171]
[1756976597580,0.75838509,4379.7,4379.6,2.68758171]
[1756976597775,0.75838509,4379.7,4379.6,2.91658171]
[1756976598078,1.06918509,4379.7,4379.6,2.91658171]
[1756976598273,0.75838509,4379.7,4379.6,2.91658171]
[1756976598576,0.55868509,4379.7,4379.6,2.91658171]
[1756976598775,0.55868509,4379.7,4379.6,2.93988171]
[1756976602182,0.55868509,4379.7,4379.6,0.9432]
[1756976602585,3.5186,4380.4,4379.6,0.9432]
[1756976602784,3.9172,4380.4,4380.3,2.51878171]
[1756976602978,4.70378184,4380.4,4380.3,2.51878171]
[1756976603284,4.47549183,4380.4,4380.3,2.72088171]
[1756976604187,4.16469183,4380.4,4380.3,2.72088171]
[1756976604381,3.96989183,4380.4,4380.3,2.94988171]
[1756976604575,3.76609183,4380.4,4380.3,2.94988171]
[1756976605079,1.07289183,4380.4,4380.3,2.94988171]
[1756976605284,1.26769183,4380.4,4380.3,2.94988171]
[1756976605474,1.26769183,4380.4,4380.3,2.74778171]
[1756976605678,1.26769183,4380.4,4380.3,2.94988171]
[1756976609278,0.76209183,4380.4,4380.3,2.94988171]
[1756976609880,3.2078,4381.0,4380.5,0.114]
[1756976610082,3.4116,4381.0,4380.9,2.72088171]
[1756976610776,3.4116,4381.6,4381.5,0.526]
[1756976610975,3.7224,4381.6,4381.5,3.06488171]
[1756976611381,3.9172,4381.6,4381.5,3.06488171]
[1756976611984,3.9172,4381.6,4381.5,2.95088171]
[1756976613293,3.9172,4381.6,4381.5,2.72088171]
[1756976613591,3.9172,4381.6,4381.5,2.35808784]
[1756976615700,3.9172,4381.6,4381.5,2.15598784]
[1756976618208,3.4116,4381.6,4381.5,2.47208784]
[1756976618413,3.9172,4381.6,4381.5,2.47208784]
[1756976618713,3.9172,4381.6,4381.5,2.35808784]
[1756976620314,3.9172,4381.6,4381.5,2.15598784]
[1756976621914,4.4705992,4381.6,4381.5,2.15598784]
[1756976622317,4.4705992,4381.6,4381.5,2.35808784]
[1756976626317,4.4705992,4381.6,4381.5,2.47338784]
[1756976626519,4.4705992,4381.6,4381.5,2.35808784]
[1756976627016,4.4705992,4381.6,4381.5,2.47338784]
[1756976628312,5.69218813,4381.6,4381.5,2.47338784]
[1756976629116,4.4705992,4381.6,4381.5,2.47338784]
[1756976629918,4.1597992,4381.6,4381.5,2.47338784]
[1756976630121,4.4555992,4381.6,4381.5,2.47338784]
[1756976636923,4.1597992,4381.6,4381.5,2.47338784]
[1756976637819,0.7571992,4381.6,4381.5,2.47338784]
[1756976638322,0.5533992,4381.6,4381.5,2.47338784]
[1756976640718,0.5533992,4381.6,4381.5,4.10727568]
[1756976640915,0.5533992,4381.6,4381.5,2.47338784]
[1756976647726,0.7550992,4381.6,4381.5,2.47338784]
[1756976647923,1.0508992,4381.6,4381.5,2.70238784]
[1756976648726,0.7550992,4381.6,4381.5,2.70238784]
[1756976648923,0.7550992,4381.6,4381.5,2.47338784]
[1756976649124,0.7550992,4381.6,4381.5,2.70238784]
[1756976652733,0.5533992,4381.6,4381.5,2.70238784]
[1756976655230,0.55691097,4381.6,4381.5,2.39018784]
[1756976655535,0.55691097,4381.7,4381.5,2.39018784]
[1756976655733,0.76011097,4381.6,4381.5,2.39018784]
[1756976656338,0.76011097,4381.6,4381.5,2.68398784]
[1756976656839,1.25741097,4381.6,4381.5,2.68938784]
[1756976657030,1.25741097,4381.6,4381.5,2.33968784]
[1756976657235,1.25741097,4381.6,4381.5,2.36658784]
[1756976659441,1.25741097,4381.6,4381.5,2.56798784]
[1756976659642,1.25741097,4381.6,4381.5,2.33898784]
[1756976659841,1.25741097,4381.6,4381.5,2.56798784]
[1756976660635,1.25741097,4381.6,4381.5,2.68868784]
[1756976660941,0.96881097,4381.6,4381.5,2.68868784]
[1756976661841,1.25741097,4381.6,4381.5,2.68868784]
[1756976666243,0.96881097,4381.6,4381.5,2.68868784]
[1756976667942,1.25741097,4381.6,4381.5,2.68868784]
[1756976668341,0.96881097,4381.6,4381.5,2.68868784]
[1756976668536,0.76011097,4381.6,4381.5,2.68868784]
[1756976668949,0.55691097,4381.6,4381.5,2.68868784]
[1756976669144,0.4918,4381.8,4381.7,0.4103]
[1756976669446,0.55775087,4381.8,4381.7,4.20087568]
[1756976669642,0.55775087,4381.9,4381.7,4.20087568]
[1756976669844,0.55775087,4381.8,4381.7,4.20087568]
[1756976670043,3.0,4382.0,4381.9,0.2938]
[1756976670240,3.55788567,4382.0,4381.9,0.9331]
[1756976671457,4.04968567,4382.0,4381.9,0.9331]
[1756976671755,3.76108567,4382.0,4381.9,0.9331]
[1756976673259,4.04968567,4382.0,4381.9,0.9331]
[1756976673457,3.64968567,4382.0,4381.9,2.92814676]
[1756976675257,3.85838567,4382.0,4381.9,2.92814676]
[1756976675753,3.97398567,4382.0,4381.9,2.43294676]
[1756976675947,3.97398567,4382.0,4381.9,2.22404676]
[1756976677258,3.97398567,4382.0,4381.9,2.51784676]
[1756976679259,3.85838567,4382.0,4381.9,2.72674676]
[1756976680259,3.85838567,4382.0,4381.9,2.92814676]
[1756976680460,3.85838567,4382.0,4381.9,2.69914676]
[1756976680659,3.85838567,4382.0,4381.9,3.02814676]
[1756976682565,3.56978567,4382.0,4381.9,3.02814676]
[1756976684461,3.15788567,4382.0,4381.9,3.02814676]
[1756976684859,3.35288567,4382.0,4381.9,3.02814676]
[1756976686269,3.3523606,4382.0,4381.9,3.02814676]
[1756976687759,3.1573606,4382.0,4381.9,3.02814676]
[1756976692169,2.6,4382.0,4381.9,3.02814676]
[1756976696967,0.1226,4383.0,4382.9,0.4078]